fUST/lending_fUST_20250606
["ID","MTS","AMOUNT","RATE_DAILY","PERIOD"]
[364692580,1749208271350,-151.0,0.000238,7]
[364692581,1749208271359,-151.0,0.000238,7]
[364692582,1749208271369,-2000.0,0.00023816,2]
[364692583,1749208271378,-929.84441225,0.00023816,2]
[364692584,1749208271389,-151.0,0.00023827,7]
[364692585,1749208271398,-237.0822292,0.00023835,2]
[364692586,1749208271408,-440.0,0.00023835,2]
[364692587,1749208271418,-440.0,0.00023835,2]
[364692588,1749208271427,-440.0,0.00023835,2]
[364692589,1749208271437,-440.0,0.00023835,2]
[364692590,1749208271448,-440.0,0.00023835,2]
[364692591,1749208271458,-440.0,0.00023835,2]
[364692592,1749208271467,-175.41635084,0.00023835,2]
[364692593,1749208271476,-440.0,0.00023835,2]
[364692594,1749208271486,-440.0,0.00023835,2]
[364692595,1749208271497,-440.0,0.00023835,2]
[364692596,1749208271506,-373.12817433,0.00023835,2]
[364692597,1749208271516,-356.20223324,0.00023835,2]
[364692598,1749208271527,-440.0,0.00023835,2]
[364692599,1749208271537,-440.0,0.00023835,2]
[364692600,1749208271546,-440.0,0.00023835,2]
[364692601,1749208271556,-440.0,0.00023835,2]
[364692602,1749208271565,-440.0,0.00023835,2]
[364692603,1749208271575,-440.0,0.00023835,2]
[364692604,1749208271584,-440.0,0.00023835,2]
[364692605,1749208271594,-440.0,0.00023835,2]
[364692606,1749208271603,-352.15378699,0.00023835,2]
[364692607,1749208271613,-440.0,0.00023835,2]
[364692608,1749208271622,-440.0,0.00023835,2]
[364692609,1749208271631,-440.0,0.00023835,2]
[364692610,1749208271641,-440.0,0.00023835,2]
[364692611,1749208271651,-440.0,0.00023835,2]
[364692612,1749208271661,-440.0,0.00023835,2]
[364692613,1749208271671,-440.0,0.00023835,2]
[364692614,1749208271680,-440.0,0.00023835,2]
[364692615,1749208271690,-440.0,0.00023835,2]
[364692616,1749208271700,-370.0,0.00023835,2]
[364692617,1749208271709,-182.77855004,0.00023835,2]
[364692618,1749208271719,-386.74633007,0.00023835,2]
[364692619,1749208271728,-500.0,0.00023835,2]
[364692620,1749208271737,-880.25,0.00023835,2]
[364692621,1749208271746,-440.0,0.00023835,2]
[364692622,1749208271756,-440.0,0.00023835,2]
[364692623,1749208271766,-706.33,0.00023835,2]
[364692624,1749208271776,-440.0,0.00023835,2]
[364692625,1749208271786,-440.0,0.00023835,2]
[364692626,1749208271795,-440.0,0.00023835,2]
[364692627,1749208271804,-440.0,0.00023835,2]
[364692628,1749208271813,-490.39,0.00023835,2]
[364692629,1749208271823,-440.0,0.00023835,2]
[364692630,1749208271832,-440.0,0.00023835,2]
[364692631,1749208271842,-440.0,0.00023835,2]
[364692632,1749208271852,-1051.41,0.00023835,2]
[364692633,1749208271861,-440.0,0.00023835,2]
[364692634,1749208271870,-440.0,0.00023835,2]
[364692635,1749208271880,-440.0,0.00023835,2]
[364692636,1749208271890,-743.09,0.00023835,2]
[364692637,1749208271900,-440.0,0.00023835,2]
[364692638,1749208271910,-440.0,0.00023835,2]
[364692639,1749208271919,-473.51,0.00023835,2]
[364692640,1749208271929,-440.0,0.00023835,2]
[364692641,1749208271939,-440.0,0.00023835,2]
[364692642,1749208271948,-440.0,0.00023835,2]
[364692643,1749208271958,-440.0,0.00023835,2]
[364692644,1749208271968,-306.74649996,0.00023835,2]
[364692645,1749208271978,-379.41697352,0.00023835,2]
[364692646,1749208271988,-996.55,0.00023835,2]
[364692647,1749208271998,-440.0,0.00023835,2]
[364692648,1749208272008,-440.0,0.00023835,2]
[364692649,1749208272018,-3712.12,0.00023835,2]
[364692650,1749208272027,-440.0,0.00023835,2]
[364692651,1749208272036,-440.0,0.00023835,2]
[364692652,1749208272046,-440.0,0.00023835,2]
[364692653,1749208272056,-440.0,0.00023835,2]
[364692654,1749208272067,-351.81035841,0.00023835,2]
[364692655,1749208272077,-442.40520821,0.00023835,2]
[364692656,1749208272087,-1189.9,0.00023835,2]
[364692657,1749208272097,-522.63540472,0.00023835,2]
[364692658,1749208272106,-440.0,0.00023835,2]
[364692659,1749208272116,-451.83,0.00023835,2]
[364692660,1749208272125,-1232.13,0.00023835,2]
[364692661,1749208272135,-440.0,0.00023835,2]
[364692662,1749208272145,-440.0,0.00023835,2]
[364692663,1749208272154,-440.0,0.00023835,2]
[364692664,1749208272164,-255.83,0.00023835,2]
[364692665,1749208272173,-440.0,0.00023835,2]
[364692666,1749208272183,-440.0,0.00023835,2]
[364692667,1749208272192,-554.55,0.00023835,2]
[364692668,1749208272201,-440.0,0.00023835,2]
[364692669,1749208272211,-281.16035101,0.00023835,2]
[364692670,1749208272220,-713.45,0.00023835,2]
[364692671,1749208272230,-440.0,0.00023835,2]
[364692672,1749208272239,-440.0,0.00023835,2]
[364692673,1749208272249,-797.93,0.00023835,2]
[364692674,1749208272258,-440.0,0.00023835,2]
[364692675,1749208272268,-4936.21,0.00023835,2]
[364692676,1749208272277,-440.0,0.00023835,2]
[364692677,1749208272287,-279.75638471,0.00023835,8]
[364692678,1749208272296,-440.0,0.00023835,2]
[364692679,1749208272306,-4681.65,0.00023835,2]
[364692680,1749208272315,-421.78759444,0.00023835,2]
[364692681,1749208272325,-440.0,0.00023835,2]
[364692682,1749208272335,-440.0,0.00023835,2]
[364692683,1749208272344,-744.29,0.00023835,2]
[364692684,1749208272354,-3000.48,0.00023835,2]
[364692685,1749208272364,-440.0,0.00023835,2]
[364692686,1749208272373,-440.0,0.00023835,2]
[364692687,1749208272383,-1192.64,0.00023835,2]
[364692688,1749208272394,-1070.68,0.00023835,2]
[364692689,1749208272403,-1944.33,0.00023835,2]
[364692690,1749208272413,-380.0,0.00023835,2]
[364692691,1749208272423,-861.46,0.00023835,2]
[364692692,1749208272433,-440.0,0.00023835,2]
[364692693,1749208272443,-608.5,0.00023835,2]
[364692694,1749208272454,-1769.86,0.00023835,2]
[364692695,1749208272464,-1639.72,0.00023835,2]
[364692696,1749208272474,-440.0,0.00023835,2]
[364692697,1749208272487,-524.53,0.00023835,2]
[364692698,1749208272498,-440.0,0.00023835,2]
[364692699,1749208272508,-440.0,0.00023835,2]
[364692700,1749208272605,-440.0,0.00023835,2]
[364692701,1749208272628,-400.0,0.00023835,2]
[364692702,1749208272640,-498.2,0.00023835,2]
[364692703,1749208272650,-1771.61,0.00023835,2]
[364692704,1749208272661,-440.0,0.00023835,2]
[364692705,1749208272672,-1057.09,0.00023835,2]
[364692706,1749208272682,-440.0,0.00023835,2]
[364692707,1749208272693,-2442.36,0.00023835,2]
[364692708,1749208272703,-486.94,0.00023835,2]
[364692709,1749208272713,-470.12,0.00023835,2]
[364692710,1749208272723,-818.92,0.00023835,2]
[364692711,1749208272733,-440.0,0.00023835,2]
[364692712,1749208272743,-284.56145394,0.00023835,2]
[364692713,1749208272754,-440.0,0.00023835,2]
[364692714,1749208272763,-440.0,0.00023835,2]
[364692715,1749208272775,-440.0,0.00023835,2]
[364692716,1749208272784,-237.22059606,0.00023835,2]
[364692717,1749208272795,-440.0,0.00023835,2]
[364692718,1749208272805,-440.0,0.00023835,2]
[364692719,1749208272815,-681.11,0.00023835,2]
[364692720,1749208272825,-988.23,0.00023835,2]
[364692721,1749208272835,-440.0,0.00023835,2]
[364692722,1749208272845,-440.0,0.00023835,2]
[364692723,1749208272854,-440.0,0.00023835,2]
[364692724,1749208272864,-440.0,0.00023835,2]
[364692725,1749208272873,-440.0,0.00023835,2]
[364692726,1749208272882,-3244.81,0.00023835,2]
[364692727,1749208272893,-1989.85,0.00023835,2]
[364692728,1749208272902,-2240.57,0.00023835,2]
[364692729,1749208272912,-1580.17,0.00023835,2]
[364692730,1749208272921,-440.0,0.00023835,2]
[364692731,1749208272933,-943.15,0.00023835,2]
[364692732,1749208272942,-6747.86,0.00023835,2]
[364692733,1749208272952,-440.0,0.00023835,2]
[364692734,1749208272962,-4117.32,0.00023835,2]
[364692735,1749208272971,-517.04,0.00023835,2]
[364692736,1749208272981,-718.67,0.00023835,2]
[364692737,1749208272991,-440.0,0.00023835,2]
[364692738,1749208273000,-448.56,0.00023835,2]
[364692739,1749208273011,-542.03,0.00023835,2]
[364692740,1749208273021,-1229.28,0.00023835,2]
[364692741,1749208273031,-4617.81,0.00023835,2]
[364692742,1749208273041,-706.65,0.00023835,2]
[364692743,1749208273052,-599.5,0.00023835,2]
[364692744,1749208273064,-440.0,0.00023835,2]
[364692745,1749208273073,-552.09,0.00023835,2]
[364692746,1749208273083,-512.84,0.00023835,2]
[364692747,1749208273093,-440.0,0.00023835,2]
[364692748,1749208273103,-440.0,0.00023835,2]
[364692749,1749208273112,-591.15,0.00023835,2]
[364692750,1749208273122,-203.11179669,0.00023836,2]
[364692751,1749208273132,-311.4322408,0.00023863,2]
[364692752,1749208273143,-5326.47285906,0.00023866,10]
[364692753,1749208273153,-1100.0,0.00023871,2]
[364692754,1749208273163,-1042.02369617,0.000239,2]
[364692755,1749208273174,-709.263224,0.00023923,3]
[364692756,1749208273184,-500.0,0.00023999,2]
[364692757,1749208273194,-500.0,0.00023999,2]
[364692758,1749208273204,-38887.44266284,0.00024,2]
[364692759,1749208273214,-212.608743,0.00024,7]
[364692760,1749208273224,-151.0,0.00024,7]
[364692761,1749208273234,-151.0,0.00024,7]
[364692762,1749208273244,-190.277949,0.00024,7]
[364692763,1749208273255,-160.0,0.00024,7]
[364692764,1749208273265,-834.50537533,0.00024,7]
[364692765,1749208273274,-160.0,0.00024,7]
[364692766,1749208273284,-160.0,0.00024,7]
[364692767,1749208273294,-823.0,0.00024001,2]
[364692768,1749208273304,-160.0,0.00024008,2]
[364692769,1749208273314,-215.0738,0.00024025,2]
[364692770,1749208273324,-462143.08377431,0.00024029,7]
[364692771,1749208273333,-5326.47285906,0.00024072,10]
[364692772,1749208273343,-242.36437793,0.00024087,2]
[364692773,1749208273352,-500.0,0.000241,2]
[364692774,1749208273362,-22483.71,0.000241,2]
[364692775,1749208273372,-834.50537533,0.000241,10]
[364692776,1749208273381,-315.04936747,0.000241,10]
[364692777,1749208273392,-11849.89752062,0.000241,10]
[364692778,1749208273402,-842.5625,0.000241,10]
[364692779,1749208273411,-212.976918,0.000241,10]
[364692780,1749208273421,-440.0,0.00024109,2]
[364692781,1749208273431,-440.0,0.00024109,2]
[364692782,1749208273444,-440.0,0.00024109,2]
[364692783,1749208273455,-440.0,0.00024109,2]
[364692784,1749208273465,-440.0,0.00024109,2]
[364692785,1749208273476,-260.93154517,0.00024109,2]
[364692786,1749208273489,-440.0,0.00024109,2]
[364692787,1749208273500,-440.0,0.00024109,2]
[364692788,1749208273511,-209.06404272,0.00024109,2]
[364692789,1749208273521,-440.0,0.00024109,2]
[364692790,1749208273535,-440.0,0.00024109,2]
[364692791,1749208273545,-440.0,0.00024109,2]
[364692792,1749208273555,-440.0,0.00024109,2]
[364692793,1749208273565,-440.0,0.00024109,2]
[364692794,1749208273577,-440.0,0.00024109,2]
[364692795,1749208273587,-440.0,0.00024109,2]
[364692796,1749208273597,-440.0,0.00024109,2]
[364692797,1749208273607,-440.0,0.00024109,2]
[364692798,1749208273617,-360.0,0.00024109,2]
[364692799,1749208273629,-440.0,0.00024109,2]
[364692800,1749208273639,-440.0,0.00024109,2]
[364692801,1749208273650,-390.0,0.00024109,2]
[364692802,1749208273661,-440.0,0.00024109,2]
[364692803,1749208273672,-440.0,0.00024109,2]
[364692804,1749208273682,-440.0,0.00024109,2]
[364692805,1749208273693,-440.0,0.00024109,2]
[364692806,1749208273703,-880.25,0.00024109,2]
[364692807,1749208273713,-440.0,0.00024109,2]
[364692808,1749208273724,-440.0,0.00024109,2]
[364692809,1749208273734,-706.33,0.00024109,2]
[364692810,1749208273744,-440.0,0.00024109,2]
[364692811,1749208273754,-380.0,0.00024109,2]
[364692812,1749208273765,-440.0,0.00024109,2]
[364692813,1749208273776,-560.04018772,0.00024109,2]
[364692814,1749208273786,-490.39,0.00024109,2]
[364692815,1749208273796,-440.0,0.00024109,2]
[364692816,1749208273805,-522.23186647,0.00024109,2]
[364692817,1749208273817,-440.0,0.00024109,2]
[364692818,1749208273827,-1051.41,0.00024109,2]
[364692819,1749208273836,-440.0,0.00024109,2]
[364692820,1749208273846,-440.0,0.00024109,2]
[364692821,1749208273855,-440.0,0.00024109,2]
[364692822,1749208273865,-743.09,0.00024109,2]
[364692823,1749208273874,-440.0,0.00024109,2]
[364692824,1749208273883,-554.84762379,0.00024109,2]
[364692825,1749208273894,-473.51,0.00024109,2]
[364692826,1749208273903,-440.0,0.00024109,2]
[364692827,1749208273912,-440.0,0.00024109,2]
[364692828,1749208273922,-440.0,0.00024109,2]
[364692829,1749208273931,-440.0,0.00024109,2]
[364692830,1749208273941,-996.55,0.00024109,2]
[364692831,1749208273950,-440.0,0.00024109,2]
[364692832,1749208273959,-156.4610076,0.00024109,2]
[364692833,1749208273969,-3712.12,0.00024109,2]
[364692834,1749208273978,-440.0,0.00024109,2]
[364692835,1749208273988,-440.0,0.00024109,2]
[364692836,1749208273997,-440.0,0.00024109,2]
[364692837,1749208274007,-440.0,0.00024109,2]
[364692838,1749208274016,-1189.9,0.00024109,2]
[364692839,1749208274025,-440.0,0.00024109,2]
[364692840,1749208274034,-451.83,0.00024109,2]
[364692841,1749208274044,-1232.13,0.00024109,2]
[364692842,1749208274053,-440.0,0.00024109,2]
[364692843,1749208274064,-440.0,0.00024109,2]
[364692844,1749208274073,-440.0,0.00024109,2]
[364692845,1749208274083,-440.0,0.00024109,2]
[364692846,1749208274092,-440.0,0.00024109,2]
[364692847,1749208274102,-554.55,0.00024109,2]
[364692848,1749208274111,-360.0,0.00024109,2]
[364692849,1749208274121,-713.45,0.00024109,2]
[364692850,1749208274131,-440.0,0.00024109,2]
[364692851,1749208274142,-440.0,0.00024109,2]
[364692852,1749208274151,-797.93,0.00024109,2]
[364692853,1749208274161,-440.0,0.00024109,2]
[364692854,1749208274171,-4936.21,0.00024109,2]
[364692855,1749208274180,-449.34,0.00024109,2]
[364692856,1749208274189,-440.0,0.00024109,2]
[364692857,1749208274199,-4681.65,0.00024109,2]
[364692858,1749208274208,-440.0,0.00024109,2]
[364692859,1749208274218,-438.7287796,0.00024109,2]
[364692860,1749208274227,-744.29,0.00024109,2]
[364692861,1749208274237,-3000.48,0.00024109,2]
[364692862,1749208274246,-440.0,0.00024109,2]
[364692863,1749208274255,-440.0,0.00024109,2]
[364692864,1749208274265,-1192.64,0.00024109,2]
[364692865,1749208274274,-1070.68,0.00024109,2]
[364692866,1749208274284,-1944.33,0.00024109,2]
[364692867,1749208274294,-861.46,0.00024109,2]
[364692868,1749208274303,-440.0,0.00024109,2]
[364692869,1749208274313,-608.5,0.00024109,2]
[364692870,1749208274322,-1769.86,0.00024109,2]
[364692871,1749208274331,-1639.72,0.00024109,2]
[364692872,1749208274341,-440.0,0.00024109,2]
[364692873,1749208274350,-524.53,0.00024109,2]
[364692874,1749208274359,-440.0,0.00024109,2]
[364692875,1749208274368,-432.87749607,0.00024109,2]
[364692876,1749208274377,-440.0,0.00024109,2]
[364692877,1749208274387,-498.2,0.00024109,2]
[364692878,1749208274396,-1771.61,0.00024109,2]
[364692879,1749208274405,-440.0,0.00024109,2]
[364692880,1749208274415,-1057.09,0.00024109,2]
[364692881,1749208274424,-440.0,0.00024109,2]
[364692882,1749208274434,-2442.36,0.00024109,2]
[364692883,1749208274445,-486.94,0.00024109,2]
[364692884,1749208274455,-470.12,0.00024109,2]
[364692885,1749208274465,-818.92,0.00024109,2]
[364692886,1749208274474,-440.0,0.00024109,2]
[364692887,1749208274483,-440.0,0.00024109,2]
[364692888,1749208274493,-440.0,0.00024109,2]
[364692889,1749208274599,-440.0,0.00024109,2]
[364692890,1749208274609,-440.0,0.00024109,2]
[364692891,1749208274619,-440.0,0.00024109,2]
[364692892,1749208274629,-681.11,0.00024109,2]
[364692893,1749208274639,-988.23,0.00024109,2]
[364692894,1749208274649,-440.0,0.00024109,2]
[364692895,1749208274659,-440.0,0.00024109,2]
[364692896,1749208274669,-440.0,0.00024109,2]
[364692897,1749208274679,-265.0,0.00024109,2]
[364692898,1749208274688,-440.0,0.00024109,2]
[364692899,1749208274698,-3244.81,0.00024109,2]
[364692900,1749208274708,-1989.85,0.00024109,2]
[364692901,1749208274718,-2240.57,0.00024109,2]
[364692902,1749208274728,-1580.17,0.00024109,2]
[364692903,1749208274738,-440.0,0.00024109,2]
[364692904,1749208274747,-943.15,0.00024109,2]
[364692905,1749208274756,-6747.86,0.00024109,2]
[364692906,1749208274766,-440.0,0.00024109,2]
[364692907,1749208274775,-4117.32,0.00024109,2]
[364692908,1749208274784,-517.04,0.00024109,2]
[364692909,1749208274794,-718.67,0.00024109,2]
[364692910,1749208274803,-440.0,0.00024109,2]
[364692911,1749208274813,-448.56,0.00024109,2]
[364692912,1749208274823,-542.03,0.00024109,2]
[364692913,1749208274832,-1229.28,0.00024109,2]
[364692914,1749208274841,-4617.81,0.00024109,2]
[364692915,1749208274851,-706.65,0.00024109,2]
[364692916,1749208274860,-599.5,0.00024109,2]
[364692917,1749208274870,-413.2365632,0.00024109,2]
[364692918,1749208274879,-552.09,0.00024109,2]
[364692919,1749208274890,-512.84,0.00024109,2]
[364692920,1749208274900,-492.26,0.00024109,2]
[364692921,1749208274909,-440.0,0.00024109,2]
[364692922,1749208274919,-591.15,0.00024109,2]
[364692923,1749208274928,-2000.0,0.00024116,2]
[364692924,1749208274938,-2000.0,0.00024116,2]
[364692925,1749208274947,-200.0,0.0002412,9]
[364692926,1749208274957,-500.0,0.00024144,5]
[364692927,1749208274967,-1158.25488594,0.00024164,2]
[364692928,1749208274977,-151.0,0.000242,5]
[364692929,1749208274986,-150.0,0.000242,2]
[364692930,1749208274997,-1236.34,0.000242,7]
[364692931,1749208275007,-800.0,0.00024232,2]
[364692932,1749208275018,-254.04546114,0.00024249,2]
[364692933,1749208275028,-400.0,0.00024251,2]
[364692934,1749208275037,-5024.6266442,0.00024268,2]
[364692935,1749208275048,-5326.47285906,0.00024279,10]
[364692936,1749208275057,-5000.0,0.00024297,30]
[364692937,1749208275068,-722.03977714,0.00024297,30]
[364692938,1749208275302,-1131.08022286,0.00024297,30]
[364692939,1749208275312,-479.99,0.000243,2]
[364692940,1749208275322,-200.0,0.000243,2]
[364692941,1749208275332,-200.0,0.000243,3]
[364692942,1749208275343,-151.0,0.000243,9]
[364692943,1749208275353,-2807.12,0.000243,7]
[364692944,1749208275362,-500.0,0.00024344,4]
[364692945,1749208275372,-2500.0,0.00024364,2]
[364692946,1749208275381,-800.0,0.00024368,2]
[364692947,1749208275391,-440.0,0.00024383,2]
[364692948,1749208275400,-440.0,0.00024383,2]
[364692949,1749208275410,-440.0,0.00024383,2]
[364692950,1749208275420,-440.0,0.00024383,2]
[364692951,1749208275430,-440.0,0.00024383,2]
[364692952,1749208275439,-440.0,0.00024383,2]
[364692953,1749208275453,-440.0,0.00024383,2]
[364692954,1749208275462,-440.0,0.00024383,2]
[364692955,1749208275472,-440.0,0.00024383,2]
[364692956,1749208275482,-440.0,0.00024383,2]
[364692957,1749208275493,-440.0,0.00024383,2]
[364692958,1749208275503,-440.0,0.00024383,2]
[364692959,1749208275512,-440.0,0.00024383,2]
[364692960,1749208275523,-440.0,0.00024383,2]
[364692961,1749208275532,-440.0,0.00024383,2]
[364692962,1749208275542,-440.0,0.00024383,2]
[364692963,1749208275552,-440.0,0.00024383,2]
[364692964,1749208275562,-440.0,0.00024383,2]
[364692965,1749208275572,-440.0,0.00024383,2]
[364692966,1749208275581,-440.0,0.00024383,2]
[364692967,1749208275591,-440.0,0.00024383,2]
[364692968,1749208275601,-440.0,0.00024383,2]
[364692969,1749208275610,-880.25,0.00024383,2]
[364692970,1749208275619,-440.0,0.00024383,2]
[364692971,1749208275629,-440.0,0.00024383,2]
[364692972,1749208275638,-706.33,0.00024383,2]
[364692973,1749208275649,-440.0,0.00024383,2]
[364692974,1749208275658,-440.0,0.00024383,2]
[364692975,1749208275668,-490.39,0.00024383,2]
[364692976,1749208275678,-440.0,0.00024383,2]
[364692977,1749208275687,-440.0,0.00024383,2]
[364692978,1749208275696,-1051.41,0.00024383,2]
[364692979,1749208275706,-440.0,0.00024383,2]
[364692980,1749208275715,-440.0,0.00024383,2]
[364692981,1749208275724,-288.72491501,0.00024383,2]
[364692982,1749208275734,-743.09,0.00024383,2]
[364692983,1749208275744,-192.90702221,0.00024383,2]
[364692984,1749208275754,-473.51,0.00024383,2]
[364692985,1749208275764,-440.0,0.00024383,2]
[364692986,1749208275773,-357.02862493,0.00024383,2]
[364692987,1749208275784,-440.0,0.00024383,2]
[364692988,1749208275794,-440.0,0.00024383,2]
[364692989,1749208275803,-996.55,0.00024383,2]
[364692990,1749208275813,-440.0,0.00024383,2]
[364692991,1749208275823,-528.45008631,0.00024383,2]
[364692992,1749208276559,-199.02,0.00018086,2]
[364692993,1749208276568,-364.519998,0.00018947,2]
[364692994,1749208276580,-33.520002,0.00018947,2]
[364692995,1749208276590,-466.479998,0.00019808,2]
[364692996,1749208276601,-130.580002,0.00019808,2]
[364692997,1749208276611,-154.35407111,0.000206,2]
[364692998,1749208276620,-796.09,0.00020669,2]
[364692999,1749208276630,-430.0,0.00021917,2]
[364693000,1749208276639,-430.0,0.00021917,2]
[364693001,1749208276649,-440.44955845,0.00021917,2]
[364693002,1749208276658,-430.0,0.00021917,2]
[364693003,1749208276668,-440.0,0.00021917,2]
[364693004,1749208276678,-440.0,0.00022191,2]
[364693005,1749208276687,-440.0,0.00023561,2]
[364693006,1749208276697,-440.0,0.00023835,2]
[364693007,1749208276707,-440.0,0.00024109,2]
[364693008,1749208276716,-271.54991369,0.00024383,2]
[364693009,1749208276726,-940.17645475,0.00024383,2]
[364693012,1749208418323,251.730823,0.00013699,2]
[364693019,1749208562050,2938.8516364,0.000179,2]
[364693020,1749208617766,286.093101,0.00017838,2]
[364693022,1749208676707,295.0815362,0.00017974,2]
[364693026,1749208808650,212.0045471,0.00017832,2]
[364693041,1749209120397,-230.91,0.0001801,2]
[364693042,1749209120420,-67.42652114,0.00018251,2]
[364693043,1749209125633,-87.38829786,0.00018251,2]
[364693044,1749209125658,-143.6405393,0.00018267,2]
[364693045,1749209128006,-184.37567543,0.00018267,2]
[364693046,1749209128032,-178.21868232,0.00018268,2]
[364693047,1749209145767,-188.94103995,0.00018068,2]
[364693048,1749209149660,-213.48860928,0.00018067,2]
[364693049,1749209151829,-86.51139072,0.00018067,2]
[364693050,1749209151852,-174.22238937,0.00018068,2]
[364693051,1749209153364,-173.52088538,0.00018068,2]
[364693052,1749209155512,-209.37251466,0.00018068,2]
[364693053,1749209156119,-341.95685254,0.00018068,2]
[364693054,1749209157239,-204.76240816,0.00018068,2]
[364693055,1749209158793,-303.02236616,0.00018068,2]
[364693056,1749209160864,-342.45150672,0.00018068,2]
[364693057,1749209163103,-163.484949,0.00018068,2]
[364693058,1749209165887,-255.11607998,0.00018067,2]
[364693059,1749209168582,-44.88392002,0.00018067,2]
[364693060,1749209168605,-326.06086611,0.00018068,2]
[364693061,1749209170066,-241.78191026,0.00018068,2]
[364693062,1749209172179,-182.57529871,0.00018068,2]
[364693063,1749209173670,-304.49010774,0.00018068,2]
[364693064,1749209175855,-203.01044608,0.00018068,2]
[364693065,1749209177565,-254.47840344,0.00018068,2]
[364693066,1749209179583,-270.52471525,0.00018068,2]
[364693067,1749209182088,-184.046707,0.00018068,2]
[364693068,1749209183674,-164.17030852,0.00018068,2]
[364693069,1749209185989,-335.09127445,0.00018068,2]
[364693070,1749209189454,-222.25790411,0.00018068,2]
[364693071,1749209191037,-201.85554784,0.00018068,2]
[364693072,1749209198124,-179.90955412,0.00018068,2]
[364693073,1749209201600,-163.37215916,0.00018068,2]
[364693074,1749209202098,227.97,0.00017995,2]
[364693075,1749209203772,-166.33929179,0.00018068,2]
[364693076,1749209205322,-156.63888565,0.00018068,2]
[364693077,1749209208137,-230.41930222,0.00018068,2]
[364693078,1749209209651,-408.19835004,0.00018068,2]
[364693079,1749209211530,-301.51309091,0.00018068,2]
[364693080,1749209213587,-173.899304,0.00018068,2]
[364693081,1749209215913,-402.58715348,0.00018068,2]
[364693082,1749209218108,-157.90957491,0.00018068,2]
[364693083,1749209219611,-158.96908279,0.00018068,2]
[364693084,1749209222418,-169.090823,0.00018068,2]
[364693085,1749209225402,-223.53184266,0.00018068,2]
[364693086,1749209226995,-186.23675429,0.00018068,2]
[364693087,1749209227736,3930.68029209,0.00017826,2]
[364693088,1749209227762,20969.31970791,0.00017826,2]
[364693089,1749209229081,-1579.77622177,0.00018068,2]
[364693090,1749209229115,-211.22775025,0.00018068,2]
[364693091,1749209233086,-3536.58350777,0.00018068,2]
[364693092,1749209233538,-173.899304,0.00018068,2]
[364693093,1749209234096,-1767.76483404,0.00018068,2]
[364693094,1749209234119,-167.36909087,0.00018715,2]
[364693095,1749209234141,-167.36909087,0.00018767,2]
[364693096,1749209234165,-300.0,0.00018814,2]
[364693097,1749209234186,-2203.83058384,0.00018815,2]
[364693098,1749209234208,-1200.0,0.00018831,2]
[364693099,1749209234231,-352.5293028,0.00018832,2]
[364693100,1749209234253,-168.54569797,0.00018832,2]
[364693101,1749209234274,-580.97426396,0.00018832,2]
[364693102,1749209234296,-500.0,0.00018832,2]
[364693103,1749209234318,-293.03103302,0.00018832,2]
[364693104,1749209234341,-500.0,0.00018832,2]
[364693105,1749209234364,-187.1129925,0.00018832,2]